Cogmind - Beta 16 @@@ ROGUE MODE // 2026.01.20 @ 13:08:44 Player: DreamCore Result: Destroyed by S-27 Virus with Autogun Performance ------------- Evolutions (5) 2500 Regions Visited (16) 3200 Robots Destroyed (96) 480 Value Destroyed (3475) 3475 Prototype IDs (28) 560 Alien Tech Used (0) 0 Bonus (3560) 3560 TOTAL SCORE: 13775 Bonus ------- High Alert Combat Kills 409 Follower Combat Kills 51 Entered Garrisons 800 Used RIF Installer 1500 Entered DSFs 500 Aligned with FarCom 300 Cogmind --------- Core Integrity 0/1000 Matter 289/300 Energy 99/100 System Corruption 2% Temperature Cool (0) Movement Core (200) Ox3 Location -5/Garrison Parts ------- > --- POWER (2) -------- (None) > --- PROPULSION (5) --- (None) > --- UTILITY (8) ------ Medium Storage Unit Enhanced Optical Array Improved Signal Interpreter Advanced Terrain Scan Processor Jamming Amplifier > --- WEAPON (2) ------- (None) > --- INVENTORY (10) --- Micro Fission Core Cooled Aerolev Unit VTOL Module Nuclear Pulse Array Structural Scanner Stasis Canceller Transmission Jammer Relay Coupler [NC] (27) Relay Coupler [Duelist] (26) Peak State ------------ > --- POWER ------------ Light Antimatter Reactor Light Antimatter Reactor > --- PROPULSION ------- Airjet Airjet Gravmag System Gravmag System Improved Gravmag System > --- UTILITY ---------- Medium Storage Unit Enhanced Optical Array Improved Signal Interpreter Advanced Terrain Scan Processor Transmission Jammer Jamming Amplifier Improved Hacking Suite Relay Coupler [Grunt] > --- WEAPON ----------- Remote Datajack Power Sword > --- INVENTORY -------- Micro Fission Core Airjet Cooled Aerolev Unit Nuclear Pulse Array Structural Scanner Advanced Terrain Scanner Stasis Canceller Relay Coupler [NC] Relay Coupler [Duelist] [Rating: 76] Favorites ----------- Power Ion Engine Engine Ion Engine Power Core Fission Core Reactor Light Antimatter Reactor Propulsion Aluminum Leg Treads Improved Heavy Treads Leg Aluminum Leg Hover Unit Airjet Flight Unit VTOL Module Utility Large Storage Unit Device Structural Scanner Storage Large Storage Unit Processor Jamming Amplifier Hackware Improved Hacking Suite Protection Hardened Medium Armor Plating Weapon Light Assault Rifle Energy Gun Gatling Laser Energy Cannon Long-range Proton Cannon Ballistic Gun Light Assault Rifle Ballistic Cannon Light Cannon Launcher Heavy Missile Launcher Special Weapon Remote Datajack Slashing Weapon Power Sword Build | -11 -10 -10 -10 -9 -8 -7 -7 -7 -7 -6 -6 -6 -5 -5 -5 -5 ------- Run | Yrd Mat Min Exi Min Mat Fac Gar Fac DSF Fac Gar Fac Fac Gar Fac Gar Slots Evolved 10 | . . . . . 4 2 . . . 2 . . 2 . . . Power 1 | . . . . . . . . . . 1 . . . . . . Propulsion 3 | . . . . . 2 . . . . . . . 1 . . . Utility 6 | . . . . . 2 2 . . . 1 . . 1 . . . Weapon . | . . . . . . . . . . . . . . . . . Parts Attached 131 | . 16 1 1 1 46 3 27 . 3 14 . 9 3 2 . 5 Power 19 | . 2 . . . 7 . 3 . . 4 . 1 . . . 2 Engine 10 | . 2 . . . 4 . 1 . . 3 . . . . . . Core 7 | . . . . . 3 . 2 . . 1 . 1 . . . . Reactor 2 | . . . . . . . . . . . . . . . . 2 Propulsion 38 | . 5 . . . 17 . 7 . . 4 . 3 1 . . 1 Treads 3 | . . . . . . . 3 . . . . . . . . . Leg 24 | . 5 . . . 17 . 2 . . . . . . . . . Wheel . | . . . . . . . . . . . . . . . . . Hover 9 | . . . . . . . . . . 4 . 3 1 . . 1 Flight 2 | . . . . . . . 2 . . . . . . . . . Utility 45 | . 1 1 1 1 13 2 8 . 3 5 . 4 2 2 . 2 Device 20 | . 1 . . 1 6 1 6 . 1 1 . 2 . 1 . . Storage 3 | . . . 1 . . . . . 1 . . . 1 . . . Processor 4 | . . . . . . . . . . 1 . 2 1 . . . Hackware 6 | . . . . . . . . . 1 2 . . . 1 . 2 Protection 12 | . . 1 . . 7 1 2 . . 1 . . . . . . Artifact . | . . . . . . . . . . . . . . . . . Weapon 29 | . 8 . . . 9 1 9 . . 1 . 1 . . . . Energy Gun 6 | . 1 . . . 2 . 3 . . . . . . . . . Energy Cannon 3 | . . . . . . 1 2 . . . . . . . . . Ballistic Gun 9 | . 4 . . . 4 . 1 . . . . . . . . . Ballistic Cannon 3 | . 1 . . . . . 2 . . . . . . . . . Launcher 2 | . 1 . . . . . 1 . . . . . . . . . Special Weapon 2 | . 1 . . . . . . . . . . 1 . . . . Impact Weapon . | . . . . . . . . . . . . . . . . . Slashing Weapon 4 | . . . . . 3 . . . . 1 . . . . . . Piercing Weapon . | . . . . . . . . . . . . . . . . . Special Melee Weapon . | . . . . . . . . . . . . . . . . . Unidentified Prototypes 5 | . . . . 1 2 . 2 . . . . . . . . . Parts Lost 40 | . 5 . . . 8 . 13 . 1 . . . . . . 13 Power 2 | . . . . . . . . . . . . . . . . 2 Propulsion 17 | . 2 . . . 4 . 5 . . . . . . . . 6 Utility 12 | . . . . . 3 . 5 . 1 . . . . . . 3 Weapon 9 | . 3 . . . 1 . 3 . . . . . . . . 2 Highest Loss Streak 13 | . 4 . . . 5 . 6 . 1 . . . . . . 13 To Critical Strikes . | . . . . . . . . . . . . . . . . . Average Backups 11 | . 7 8 8 13 14 14 14 15 14 8 5 4 7 9 8 8 Power 1 | . 1 1 1 2 1 1 1 1 1 . 1 . . 1 1 1 Propulsion 2 | . 3 3 3 3 1 3 1 4 3 3 3 2 2 3 3 2 Utility 3 | . . 2 2 4 7 6 3 5 4 2 1 1 3 5 4 4 Weapon 3 | . 1 2 1 3 3 4 7 5 5 2 . . . . . . Tool/Special . | . . . . . . . . . . . . . . . . . Unused Backups 51 | . 9 2 1 2 10 1 6 . 2 7 . 1 1 3 . 6 Power 11 | . 3 . . . 3 . 4 . . . . . . . . 1 Propulsion 18 | . 5 . . 2 1 . 1 . 2 4 . 1 . . . 2 Utility 17 | . 1 1 1 . 4 1 1 . . 1 . . 1 3 . 3 Weapon 5 | . . 1 . . 2 . . . . 2 . . . . . . Tool/Special . | . . . . . . . . . . . . . . . . . Average Slot Usage (%) 95 | . 98 100 100 100 98 99 91 76 82 88 93 94 99 100 98 92 Engine 5 | . 14 14 14 14 2 7 2 7 7 8 6 5 . . . . Core 4 | . . . . . 6 . 4 . . 3 6 6 11 11 11 1 Treads 2 | . . . . . . . 6 15 15 5 . . . . . . Leg 18 | . 27 28 28 28 35 30 15 . . . . . . . . . Hover 5 | . . . . . . . . . . 15 26 26 29 29 29 24 Device 17 | . 12 12 14 14 16 29 22 23 24 16 13 20 13 8 9 3 Storage 8 | . 14 14 14 14 9 7 7 7 13 4 . . 4 5 5 5 Processor 3 | . . . . . . . . . . 3 6 8 20 23 23 23 Hackware 2 | . . . . . . . . . 3 15 20 10 5 8 5 11 Protection 5 | . . 1 . . 9 7 12 7 2 3 6 4 . . . . Energy Cannon 1 | . . . . . . 3 5 7 7 2 . . . . . . Ballistic Gun 5 | . 19 4 14 14 8 4 1 . . . . . . . . . Ballistic Cannon 3 | . 6 11 . 11 . . 4 7 7 2 . . . . . . Special Weapon 2 | . . 12 14 2 . . . . . . . 1 5 5 5 4 Slashing Weapon 3 | . . . . . 8 6 . . . 3 6 6 5 5 5 4 Peak Build Rating 76 | . 8 10 9 18 36 42 64 64 71 75 52 63 73 73 69 76 Average Rating 38 | . 7 8 8 13 29 41 49 64 65 59 52 55 71 71 68 67 On Entrance 40 | 6 6 8 8 9 13 29 42 64 64 67 52 52 63 73 71 69 Avg Prop Armor Cover (%) 6 | . . . . . . . 6 . . . . . . . . . Naked Turns . | . . . . . . . . . . . . . . . . . Heaviest Build 71 | 11 16 15 28 32 48 47 68 59 63 71 26 30 35 36 34 42 Greatest Support 162 | 20 20 20 20 20 55 48 162 150 150 150 36 37 46 46 46 46 Greatest Overweight (x) 16 | . . . 1 1 . . 16 . . 5 . . . . . 8 Average Overweight (x) . | . . . . 1 . . 1 . . . . . . . . . Largest Inventory Capacity 15 | . 8 8 15 15 15 15 15 15 15 15 5 5 10 10 10 10 Average Capacity 12 | . 8 8 11 15 15 15 15 15 15 8 5 5 9 10 10 10 Most Carried 15 | . 8 8 11 15 15 15 15 15 15 15 5 5 10 10 10 10 Average Carried 11 | . 7 7 8 13 14 14 14 15 14 8 5 4 7 9 9 9 Final Capacity 15 | 8 8 8 15 15 15 15 15 15 15 5 5 5 10 10 10 10 Final Carried 15 | 6 8 8 10 15 15 15 15 15 15 5 5 5 10 10 9 10 Class Distribution -------------------- 39% | Mutant 35% | Scavenger-Mutant 7% | Infiltrator-Ninja 5% | Infiltrator-Mutant 4% | Ninja 3% | Skirmisher Dominant Class ---------------- Mutant | -10/Materials Mutant | -10/Mines Mutant | -10/Exiles Mutant | -9/Mines Scavenger-Mutant | -8/Materials Scavenger-Assassin | -7/Factory Scavenger-Mutant | -7/Garrison Scavenger-Mutant | -7/Factory Scavenger-Mutant | -7/DSF Infiltrator-Mutant | -6/Factory Infiltrator-Mutant | -6/Garrison Infiltrator-Ninja | -6/Factory Ninja | -5/Factory Mutant | -5/Garrison Infiltrator-Ninja | -5/Factory Bothacker-Mutant | -5/Garrison Resources | -11 -10 -10 -10 -9 -8 -7 -7 -7 -7 -6 -6 -6 -5 -5 -5 -5 ----------- Run | Yrd Mat Min Exi Min Mat Fac Gar Fac DSF Fac Gar Fac Fac Gar Fac Gar Matter Collected 3304 | 200 357 191 . 109 907 62 1065 . 88 149 . 50 66 60 . . Remotely . | . . . . . . . . . . . . . . . . . Salvage Created 4113 | . 469 30 . 209 1299 62 1600 . 154 141 . . 149 . . . Parts 201 | . 30 5 . 14 79 2 54 . 5 6 . . 6 . . . Haulers Intercepted 3 | . 2 . . . 1 . . . . . . . . . . . Recyclers Shooed 3 | . . . . 1 1 . . . . . . . 1 . . . Parts Field Recycled . | . . . . . . . . . . . . . . . . . Retrieved Matter . | . . . . . . . . . . . . . . . . . Parts Self-Destructed . | . . . . . . . . . . . . . . . . . Prevented . | . . . . . . . . . . . . . . . . . Parts Restored . | . . . . . . . . . . . . . . . . . Kills | -11 -10 -10 -10 -9 -8 -7 -7 -7 -7 -6 -6 -6 -5 -5 -5 -5 ------- Run | Yrd Mat Min Exi Min Mat Fac Gar Fac DSF Fac Gar Fac Fac Gar Fac Gar Combat Hostiles Destroyed 74 | . 11 3 . 4 21 1 30 . 4 . . . . . . . Melee 5 | . . . . . 5 . . . . . . . . . . . Guns 34 | . 9 2 . 2 16 . 5 . . . . . . . . . Cannons 25 | . 1 1 . 2 . 1 16 . 4 . . . . . . . AOE 9 | . 1 . . . . . 8 . . . . . . . . . Classes Destroyed 15 | . 5 . . 1 5 . 2 . 2 . . . . . . . Worker 7 | . 1 . . 1 2 . . . . 3 . . . . . . Builder 4 | . 1 . . . 3 . . . . . . . . . . . Hauler 3 | . 2 . . . 1 . . . . . . . . . . . Recycler 4 | . . . . 2 1 . . . . . . . 1 . . . Mechanic 2 | . . . . . 1 . . . . 1 . . . . . . Watcher 2 | . . . . . 1 . 1 . . . . . . . . . Swarmer 20 | . 3 3 . 4 3 . 7 . . . . . . . . . Cutter 3 | . . . . . . . 3 . . . . . . . . . Grunt 32 | . 8 . . . 11 . 11 . 2 . . . . . . . Brawler 1 | . . . . . . . 1 . . . . . . . . . Duelist 3 | . . . . . 2 . 1 . . . . . . . . . Sentry 8 | . . . . . 3 1 4 . . . . . . . . . Specialist 5 | . . . . . 2 . 3 . . . . . . . . . Programmer 1 | . . . . . . . . . 1 . . . . . . . Heavy 1 | . . . . . . . . . 1 . . . . . . . Best Kill Streak 7 | . 5 3 . 6 4 1 7 . 2 2 . . 1 . . . Combat Bots Only 7 | . 3 2 . 4 4 1 7 . 2 . . . . . . . Max Kills in Single Turn 3 | . 1 1 . 1 1 1 3 . 1 1 . . 1 . . . Gunslinging . | . . . . . . . . . . . . . . . . . Exploded 3 | . 1 . . . . . 3 . . . . . . . . . Melee 1 | . . . . . 1 . . . . . . . . . . . Uniques/NPCs Destroyed . | . . . . . . . . . . . . . . . . . Combat | -11 -10 -10 -10 -9 -8 -7 -7 -7 -7 -6 -6 -6 -5 -5 -5 -5 -------- Run | Yrd Mat Min Exi Min Mat Fac Gar Fac DSF Fac Gar Fac Fac Gar Fac Gar Hostile Shots Fired 967 | . 99 13 . 36 191 45 384 . 26 8 . . . 11 2 152 Missed 303 | . 23 6 . 7 64 17 122 . 10 5 . . . 7 2 40 Hits 664 | . 76 7 . 29 127 28 262 . 16 3 . . . 4 . 112 Melee 18 | . . . . . 8 . 10 . . . . . . . . . Projectile 646 | . 76 7 . 29 119 28 252 . 16 3 . . . 4 . 112 AOE 2 | . . . . . . 1 1 . . . . . . . . . Critical Strikes 17 | . 1 . . 2 4 . 7 . 1 . . . . 1 . 1 Damage Taken 8945 | . 849 66 . 239 1870 288 3415 . 409 42 . . 16 60 . 1691 Core 2036 | . 118 9 . 16 277 28 459 . 110 14 . . . . . 1005 Absorbed by Shields 77 | . . . . . . . . . . . . . . . . 77 Reduced by Siege Mode 43 | . . . . . . . 43 . . . . . . . . . Redirected to Shielding 52 | . . . . . 43 . . . . 9 . . . . . . Ignored by Resistances 34 | . . . . . 34 . . . . . . . . . . . Regen/Repaired (Parts) 28 | . . . . . 28 . . . . . . . . . . . Core Remaining (%) 60 | 100 . . . 42 49 . . . 14 . . 98 . . . . Volleys Fired 294 | . 63 18 . 15 57 2 115 . 15 . . 1 . 6 . 2 Largest 2 | . 2 2 . 2 2 2 2 . 2 . . 1 . 1 . 1 Hottest 150 | . 130 130 . 50 100 94 150 . 138 . . 5 . 5 . 5 Shots Fired 511 | . 125 24 . 30 112 4 177 . 30 . . 1 . 6 . 2 Gun 320 | . 99 6 . 15 112 2 86 . . . . . . . . . Cannon 160 | . 24 6 . 15 . 2 83 . 30 . . . . . . . Launcher 9 | . 1 . . . . . 8 . . . . . . . . . Special 22 | . 1 12 . . . . . . . . . 1 . 6 . 2 Kinetic 332 | . 116 12 . 30 90 2 67 . 15 . . . . . . . Thermal 120 | . 1 12 . . 22 . 70 . 15 . . . . . . . Explosive 9 | . 1 . . . . . 8 . . . . . . . . . Electromagnetic 41 | . 7 . . . . 2 32 . . . . . . . . . Robot Hit Streak 30 | . 9 6 . 3 10 7 30 . 20 . . . . 6 . 2 Robot Miss Streak 8 | . 5 1 . 3 4 . 8 . 3 . . . . 1 . . Penetration Max . | . . . . . . . . . . . . . . . . . Secondary Targets 6 | . 3 . . . 2 . 1 . . . . . . . . . Max Gunslinging Chain 1 | . 1 . . . 1 . 1 . . . . . . . . . Shots Hit Robots 369 | . 76 7 . 15 97 4 136 . 19 5 . 1 3 5 . 1 Core Hits 216 | . 25 4 . 10 49 2 117 . 5 2 . . 1 . . 1 Critical Kills 1 | . . . . . 1 . . . . . . . . . . . Critical Parts Destroyed . | . . . . . . . . . . . . . . . . . Critical Strikes 6 | . 1 . . . 4 . 1 . . . . . . . . . Burn 2 | . . . . . 2 . . . . . . . . . . . Destroy 1 | . . . . . 1 . . . . . . . . . . . Blast 1 | . . . . . . . 1 . . . . . . . . . Corrupt 1 | . 1 . . . . . . . . . . . . . . . Sever 1 | . . . . . 1 . . . . . . . . . . . Melee Attacks 167 | . . . . . 55 3 18 . . 16 8 14 28 11 2 12 Impact . | . . . . . . . . . . . . . . . . . Slashing 167 | . . . . . 55 3 18 . . 16 8 14 28 11 2 12 Piercing . | . . . . . . . . . . . . . . . . . Sneak Attacks 16 | . . . . . 9 . . . . 5 . . 2 . . . Combat Hostiles . | . . . . . . . . . . . . . . . . . Follow-up Attacks . | . . . . . . . . . . . . . . . . . Damage Inflicted 9981 | . 1077 105 . 193 2278 83 4835 . 656 477 . 53 207 . . 17 Guns 4079 | . 704 33 . 73 1286 36 1947 . . . . . . . . . Cannons 2694 | . 269 72 . 117 . 47 1533 . 656 . . . . . . . Explosions 1416 | . 61 . . . . . 1355 . . . . . . . . . Melee 1692 | . . . . . 981 . . . . 451 . 53 207 . . . Ramming 100 | . 43 . . 3 11 . . . . 26 . . . . . 17 Kinetic 3676 | . 908 105 . 190 1033 36 1090 . 314 . . . . . . . Thermal 2495 | . . . . . 253 . 1900 . 342 . . . . . . . Explosive 1304 | . 61 . . . . . 1243 . . . . . . . . . Electromagnetic 714 | . 65 . . . . 47 602 . . . . . . . . . Impact . | . . . . . . . . . . . . . . . . . Slashing 1692 | . . . . . 981 . . . . 451 . 53 207 . . . Piercing . | . . . . . . . . . . . . . . . . . Highest Corruption 2 | . . . . . . . . . . . . . . . . 2 Average Corruption 2 | . . . . . . . . . . . . . . . . 2 Corruption Purged . | . . . . . . . . . . . . . . . . . Corruption Blocked . | . . . . . . . . . . . . . . . . . Overload Shots . | . . . . . . . . . . . . . . . . . Overflow Damage 256 | . . . . . 30 . 8 . 15 143 . 33 27 . . . Projectiles 15 | . . . . . . . . . 15 . . . . . . . Explosions 8 | . . . . . . . 8 . . . . . . . . . Melee 233 | . . . . . 30 . . . . 143 . 33 27 . . . Knockbacks 10 | . 1 . . 1 . . 5 . 3 . . . . . . . Impact 1 | . 1 . . . . . . . . . . . . . . . Kinetic 9 | . . . . 1 . . 5 . 3 . . . . . . . Secondary . | . . . . . . . . . . . . . . . . . Self-Inflicted Damage 159 | . . . . . . . 152 . . . . . . . . 7 Shots 4 | . . . . . . . 4 . . . . . . . . . Rammed 11 | . . . . . . . . . . 1 . . . . . 10 Targets Rammed 18 | . 5 . . 1 1 . . . . 1 . . . . . 10 Kicked 7 | . 5 . . 1 1 . . . . . . . . . . . Crushed . | . . . . . . . . . . . . . . . . . Highest Temperature 465 | . 124 100 . 20 313 76 465 . 3 . . . . 15 . . Average Temperature 69 | . 27 33 . 8 77 36 106 . 3 . . . . 9 . . Received Heat Transfer 2068 | . 414 . . . 612 60 825 . 108 . . . . 36 . 13 Effects 9 | . . . . . 2 . 7 . . . . . . . . . Shutdowns 1 | . . . . . . . 1 . . . . . . . . . Energy Bleed 1 | . . . . . . . 1 . . . . . . . . . Interference 7 | . . . . . 2 . 5 . . . . . . . . . Siege Activations 1 | . . . . . . . 1 . . . . . . . . . Total Turns 15 | . . . . . . . 15 . . . . . . . . . Longest Duration 15 | . . . . . . . 15 . . . . . . . . . Martial Activations . | . . . . . . . . . . . . . . . . . Shielding Activations . | . . . . . . . . . . . . . . . . . Robots Disrupted . | . . . . . . . . . . . . . . . . . Combat Hostiles . | . . . . . . . . . . . . . . . . . Robots Corrupted 1 | . . . . . . . 1 . . . . . . . . . Combat Hostiles 1 | . . . . . . . 1 . . . . . . . . . Parts Fried 1 | . . . . . . . 1 . . . . . . . . . Impact Corruptions . | . . . . . . . . . . . . . . . . . Robots Melted 1 | . . . . . . . 1 . . . . . . . . . Combat Hostiles . | . . . . . . . . . . . . . . . . . Parts Melted 6 | . . . . . . . 6 . . . . . . . . . Heat Transferred 5137 | . . . . . 666 . 3971 . 500 . . . . . . . Parts Sabotaged . | . . . . . . . . . . . . . . . . . Parts Stolen . | . . . . . . . . . . . . . . . . . Parts Stripped . | . . . . . . . . . . . . . . . . . Power Chain Reactions 1 | . . . . . . . 1 . . . . . . . . . Alert | -11 -10 -10 -10 -9 -8 -7 -7 -7 -7 -6 -6 -6 -5 -5 -5 -5 ------- Run | Yrd Mat Min Exi Min Mat Fac Gar Fac DSF Fac Gar Fac Fac Gar Fac Gar Maximum Alert Level 5 | . . . . . 1 . 5 3 3 2 . . . . . . Low Security (%) 68 | . 100 100 . 100 88 100 17 . . 55 100 100 100 100 100 100 Level 1 7 | . . . . . 11 . 5 . . 37 . . . . . . Level 2 8 | . . . . . . . 28 . . 7 . . . . . . Level 3 7 | . . . . . . . 21 100 100 . . . . . . . Level 4 4 | . . . . . . . 17 . . . . . . . . . Level 5 2 | . . . . . . . 9 . . . . . . . . . High Security . | . . . . . . . . . . . . . . . . . Max Security . | . . . . . . . . . . . . . . . . . Peak Influence 1951 | . 77 50 . 80 312 140 1951 1024 826 433 62 32 12 149 81 119 Initial 1024 | . . . . . . 140 53 1024 720 433 30 32 . . 77 49 Average 281 | . 23 10 . 9 78 103 796 1024 756 196 41 5 . 59 76 95 Influence Increases 4033 | . 352 135 . 105 678 47 2028 5 116 55 32 94 53 229 4 100 Destroy 0b10 Robot/C 1560 | . 220 100 . 80 420 20 600 . 80 . . 20 . 20 . . Destroy 0b10 Robot/NC 145 | . 20 . . 15 45 . 35 . . 20 . . 10 . . . Destroy Leader 228 | . 44 20 . 10 94 10 30 . 20 . . . . . . . Allied During Kill 8 | . . 3 . . . . . . . . . . . 5 . . Successful Hack 123 | . 10 . . . 17 14 28 5 . 10 . 24 5 10 . . Disable Machine 105 | . . . . . . . 30 . 15 15 15 30 . . . . Anti-Garrison Action 1300 | . . . . . . . 1200 . . . . . . 50 . 50 Destroy Structure 279 | . 13 12 . . 27 3 105 . 1 10 17 5 38 24 4 20 Partial Spotted 15 | . . . . . . . . . . . . 15 . . . . Lose Combat Pursuer 270 | . 45 . . . 75 . . . . . . . . 120 . 30 Influence Decreases 4014 | . 350 124 13 105 370 278 154 927 319 837 14 156 53 80 82 152 Entered New Map 1974 | . . 2 13 . . 168 24 927 309 393 14 30 . . 72 22 Time Decay 1550 | . 300 102 . 105 310 110 . . . 434 . 126 53 . 10 . Lost Part 380 | . 50 . . . 60 . 130 . 10 . . . . . . 130 Lost Ally 110 | . . 20 . . . . . . . 10 . . . 80 . . Squads Dispatched 11 | . . . . . 4 . . . 1 2 . 3 1 . . . Investigation 4 | . . . . . 3 . . . . . . 1 . . . . Extermination 5 | . . . . . . . . . . 2 . 2 1 . . . Reinforcement 2 | . . . . . 1 . . . 1 . . . . . . . Assault . | . . . . . . . . . . . . . . . . . Garrison . | . . . . . . . . . . . . . . . . . Intercept . | . . . . . . . . . . . . . . . . . Searches Triggered . | . . . . . . . . . . . . . . . . . Construction Impeded . | . . . . . . . . . . . . . . . . . Haulers Reinforced . | . . . . . . . . . . . . . . . . . Active Scanning Responses . | . . . . . . . . . . . . . . . . . Cargo Convoy Interrupts . | . . . . . . . . . . . . . . . . . Stealth | -11 -10 -10 -10 -9 -8 -7 -7 -7 -7 -6 -6 -6 -5 -5 -5 -5 --------- Run | Yrd Mat Min Exi Min Mat Fac Gar Fac DSF Fac Gar Fac Fac Gar Fac Gar Distress Signals 7 | . . . . . 4 . 3 . . . . . . . . . Communications Jammed 9 | . . . . . . . . . . 9 . . . . . . Distress Signals 9 | . . . . . . . . . . 9 . . . . . . Times Spotted 150 | . 21 3 . 4 27 1 37 . 4 6 . 2 3 13 3 26 Peak Tracking Total 24 | . 4 2 . 4 4 1 9 . 2 5 . 1 2 9 3 24 Tactical Retreats 9 | . 2 . . . 4 . . . . . . . . 2 . 1 Traps | -11 -10 -10 -10 -9 -8 -7 -7 -7 -7 -6 -6 -6 -5 -5 -5 -5 ------- Run | Yrd Mat Min Exi Min Mat Fac Gar Fac DSF Fac Gar Fac Fac Gar Fac Gar Traps Triggered 10 | . . . . . 1 . 3 . . . 1 . 1 3 1 . Indirectly . | . . . . . . . . . . . . . . . . . Trap Hack Attempts . | . . . . . . . . . . . . . . . . . Triggered . | . . . . . . . . . . . . . . . . . Disarmed . | . . . . . . . . . . . . . . . . . Reprogrammed . | . . . . . . . . . . . . . . . . . Reused . | . . . . . . . . . . . . . . . . . Traps Extracted . | . . . . . . . . . . . . . . . . . Installed . | . . . . . . . . . . . . . . . . . Triggered . | . . . . . . . . . . . . . . . . . Machines | -11 -10 -10 -10 -9 -8 -7 -7 -7 -7 -6 -6 -6 -5 -5 -5 -5 ---------- Run | Yrd Mat Min Exi Min Mat Fac Gar Fac DSF Fac Gar Fac Fac Gar Fac Gar Machines Disabled 9 | . . . . . . . 2 . 1 1 1 2 . 1 . 1 Max in Single Turn 1 | . . . . . . . 1 . 1 1 1 1 . 1 . 1 Garrison Access 1 | . . . . . . . . . . . . . 1 . . . Garrison Relay 2 | . . . . . . . . . . . . . . 1 . 1 Machines Repaired . | . . . . . . . . . . . . . . . . . Machines Dismantled . | . . . . . . . . . . . . . . . . . Machines Sabotaged . | . . . . . . . . . . . . . . . . . Overloaded Fab Kills . | . . . . . . . . . . . . . . . . . Hacking | -11 -10 -10 -10 -9 -8 -7 -7 -7 -7 -6 -6 -6 -5 -5 -5 -5 --------- Run | Yrd Mat Min Exi Min Mat Fac Gar Fac DSF Fac Gar Fac Fac Gar Fac Gar Machines Accessed 42 | . 4 2 1 . 9 2 4 1 . 6 . 5 4 2 1 1 Terminals 28 | . 3 1 . . 6 1 4 1 . 4 . 4 1 2 . 1 Fabricators 1 | . . . . . . . . . . . . 1 . . . . Repair Stations 1 | . . . . . 1 . . . . . . . . . . . Recycling Units 1 | . 1 . . . . . . . . . . . . . . . Scanalyzers 4 | . . . . . 2 . . . . 1 . . 1 . . . Garrison Access 5 | . . . . . . 1 . . . 1 . . 2 . 1 . Total Hacks 97 | . 11 3 1 . 26 4 9 1 . 11 . 12 12 4 1 2 Successful 40 | . 5 1 1 . 13 1 2 1 . 2 . 3 9 1 1 . Failed 57 | . 6 2 . . 13 3 7 . . 9 . 9 3 3 . 2 Catastrophic 12 | . . . . . 2 1 1 . . 2 . 4 1 1 . . Database Lockouts . | . . . . . . . . . . . . . . . . . Manual 59 | . 10 . 1 . 15 3 . . . 9 . 11 5 3 . 2 Terminals 67 | . 9 2 . . 15 3 9 1 . 7 . 11 4 4 . 2 Fabricators 1 | . . . . . . . . . . . . 1 . . . . Repair Stations 4 | . . . . . 4 . . . . . . . . . . . Recycling Units 2 | . 2 . . . . . . . . . . . . . . . Scanalyzers 12 | . . . . . 7 . . . . 2 . . 3 . . . Garrison Access 9 | . . . . . . 1 . . . 2 . . 5 . 1 . Terminal Hacks 10 | . 2 1 1 . 1 . 2 1 . . . . 1 1 . . Robot Analysis 1 | . 1 . . . . . . . . . . . . . . . Open Door 1 | . . 1 . . . . . . . . . . . . . . Open DSF 1 | . . . . . . . . 1 . . . . . . . . Emergency Access Points 1 | . . . . . . . . . . . . . . 1 . . Terminal Index 3 | . 1 . . . 1 . . . . . . . 1 . . . Garrison Registry 1 | . . . . . . . 1 . . . . . . . . . Patrol Navigation 1 | . . . . . . . 1 . . . . . . . . . Proto ID Catalog 1 | . . . 1 . . . . . . . . . . . . . Fabricator Hacks 1 | . . . . . . . . . . . . 1 . . . . Build 1 | . . . . . . . . . . . . 1 . . . . Repair Station Hacks 3 | . . . . . 3 . . . . . . . . . . . Scan Component 2 | . . . . . 2 . . . . . . . . . . . Repair 1 | . . . . . 1 . . . . . . . . . . . Recycling Unit Hacks 1 | . 1 . . . . . . . . . . . . . . . Report Inventory 1 | . 1 . . . . . . . . . . . . . . . Scanalyzer 11 | . . . . . 7 . . . . 1 . . 3 . . . Insert Component 4 | . . . . . 3 . . . . . . . 1 . . . Analyze 3 | . . . . . 2 . . . . . . . 1 . . . Retrieve Study 4 | . . . . . 2 . . . . 1 . . 1 . . . Garrison Access Hacks 7 | . . . . . . 1 . . . 1 . . 4 . 1 . Unlock Access 4 | . . . . . . 1 . . . 1 . . 1 . 1 . Seal Access 1 | . . . . . . . . . . . . . 1 . . . Coupler Status 2 | . . . . . . . . . . . . . 2 . . . Unauthorized Hacks 7 | . 2 . . . 2 . . . . . . 2 1 . . . Terminals 6 | . 1 . . . 2 . . . . . . 2 1 . . . Assimilate 1 | . . . . . . . . . . . . 1 . . . . Botnet 5 | . 1 . . . 2 . . . . . . 1 1 . . . Fabricators . | . . . . . . . . . . . . . . . . . Repair Stations . | . . . . . . . . . . . . . . . . . Recycling Units 1 | . 1 . . . . . . . . . . . . . . . Reject 1 | . 1 . . . . . . . . . . . . . . . Scanalyzers . | . . . . . . . . . . . . . . . . . Garrison Access . | . . . . . . . . . . . . . . . . . Data Cores Recovered . | . . . . . . . . . . . . . . . . . Used . | . . . . . . . . . . . . . . . . . Hacking Detections 35 | . 4 1 . . 9 2 3 . . 6 . 3 3 2 1 1 Full Trace Events 3 | . . . . . 2 . . . . . . 1 . . . . Feedback Events . | . . . . . . . . . . . . . . . . . Feedback Blocked . | . . . . . . . . . . . . . . . . . Robot Schematics Acquired . | . . . . . . . . . . . . . . . . . Robots Built 2 | . . . . . . . . . . . . 2 . . . . Authchips 1 | . . . . . . . . . . . . 1 . . . . Time 44 | . . . . . . . . . . . . 44 . . . . Total Robot Build Rating 8 | . . . . . . . . . . . . 8 . . . . Part Schematics Acquired 3 | . . . . . 2 . . . . . . . 1 . . . Parts Built . | . . . . . . . . . . . . . . . . . Authchips . | . . . . . . . . . . . . . . . . . Time . | . . . . . . . . . . . . . . . . . Total Part Build Rating . | . . . . . . . . . . . . . . . . . Part Studies Acquired 4 | . . . . . 2 . . . . 1 . . 1 . . . Parts Repaired 1 | . . . . . 1 . . . . . . . . . . . Time 38 | . . . . . 38 . . . . . . . . . . . Parts Recycled . | . . . . . . . . . . . . . . . . . Recycled Matter . | . . . . . . . . . . . . . . . . . Retrieved Matter . | . . . . . . . . . . . . . . . . . Retrieved Components . | . . . . . . . . . . . . . . . . . Parts Scanalyzed 3 | . . . . . 2 . . . . . . . 1 . . . Part Schematics Acquired 3 | . . . . . 2 . . . . . . . 1 . . . Parts Damaged . | . . . . . . . . . . . . . . . . . Bothacking | -11 -10 -10 -10 -9 -8 -7 -7 -7 -7 -6 -6 -6 -5 -5 -5 -5 ------------ Run | Yrd Mat Min Exi Min Mat Fac Gar Fac DSF Fac Gar Fac Fac Gar Fac Gar Used RIF Installer 3 | . . . . . . . . . . . 1 . . 1 . 1 Patrol Navigation 1 | . . . . . . . . . . . . . . . . 1 Structural Interface 1 | . . . . . . . . . . . . . . 1 . . Robots Hacked 3 | . . . . . . . . . . . . . . 2 . 1 Non-combat . | . . . . . . . . . . . . . . . . . Combat 3 | . . . . . . . . . . . . . . 2 . 1 Robot Hacks Applied 3 | . . . . . . . . . . . . . . 2 . 1 overload_power 1 | . . . . . . . . . . . . . . . . 1 formatsys_high 2 | . . . . . . . . . . . . . . 2 . . Relay Couplers Released 7 | . . . . . . . . . . . . . . 4 . 3 Machine Destruction 7 | . . . . . . . . . . . . . . 4 . 3 Attached 3 | . . . . . . . . . . . . . . 1 . 2 Fabnet Peak Effective % . | . . . . . . . . . . . . . . . . . Robots Rewired . | . . . . . . . . . . . . . . . . . Allies Hacked 2 | . . . . . . . . . . . . 1 . 1 . . Hacks Repelled . | . . . . . . . . . . . . . . . . . Allies | -11 -10 -10 -10 -9 -8 -7 -7 -7 -7 -6 -6 -6 -5 -5 -5 -5 -------- Run | Yrd Mat Min Exi Min Mat Fac Gar Fac DSF Fac Gar Fac Fac Gar Fac Gar Total Allies 7 | . . 1 . . . . . . . . . 3 . 3 . . Largest Group 3 | . . 1 . . . . . . . . . 2 1 3 . . Highest-Rated Group 95 | . . 31 . . . . . . . . . 74 37 95 . . Highest-Rated Ally 37 | . . 31 . . . . . . . . . 37 37 37 . . Initial Warlord ECA Mod 4 | . . . . . . . . 4 4 3 3 . . . . . Total Orders 21 | . . . . . 8 5 5 . 2 1 . . . . . . EXPLORE 21 | . . . . . 8 5 5 . 2 1 . . . . . . Ally Attacks 42 | . . 7 . . . . . . . . . 17 3 15 . . Total Damage 609 | . . 103 . . . . . . . . . 200 121 185 . . Kills 5 | . . 2 . . . . . . . . . 1 1 1 . . Allies Corrupted . | . . . . . . . . . . . . . . . . . Allies Melted . | . . . . . . . . . . . . . . . . . Intel | -11 -10 -10 -10 -9 -8 -7 -7 -7 -7 -6 -6 -6 -5 -5 -5 -5 ------- Run | Yrd Mat Min Exi Min Mat Fac Gar Fac DSF Fac Gar Fac Fac Gar Fac Gar Active Infowar (turns) 9797 | . 1088 483 741 948 1760 228 1169 . 184 1079 81 671 654 369 30 312 Optics 1519 | . . . . . . . . . . . . 154 654 369 30 312 Sensors 389 | . . . . 389 . . . . . . . . . . . . Terrain 1392 | . . . . . . . . . . . . 642 654 96 . . Structural 7247 | . 1088 483 741 559 1760 228 250 . 1 1078 81 671 220 . 29 58 Traps 1037 | . . . . . . 228 809 . . . . . . . . . Jamming 3244 | . . . . . . . 360 . 184 764 81 671 654 367 30 133 Robot Analysis Total 1 | . 1 . . . . . . . . . . . . . . . Derelict Logs Recovered 2 | . . 1 . 1 . . . . . . . . . . . . Drone Launches 21 | . . . . . 8 5 5 . 2 1 . . . . . . Drone Recoveries 20 | . . . . . 8 5 5 . 2 . . . . . . . Exploration | -11 -10 -10 -10 -9 -8 -7 -7 -7 -7 -6 -6 -6 -5 -5 -5 -5 ------------- Run | Yrd Mat Min Exi Min Mat Fac Gar Fac DSF Fac Gar Fac Fac Gar Fac Gar Turns Passed 13007 | . 1183 521 741 949 2524 228 3477 4 184 1079 81 671 654 369 30 312 Spaces Moved 8310 | 1 740 354 501 470 1263 148 1227 3 70 1138 110 921 643 401 52 268 Core 5 | . . . . . . . . . . . . . . . . 5 Treads 885 | . . . . . . . 560 3 70 252 . . . . . . Legs 4112 | 1 740 354 501 470 1263 148 635 . . . . . . . . . Wheels . | . . . . . . . . . . . . . . . . . Hover 3276 | . . . . . . . . . . 886 110 921 643 401 52 263 Flight 32 | . . . . . . . 32 . . . . . . . . . Fastest Speed 44 | 120 120 120 120 190 120 120 120 160 160 48 48 48 44 44 44 44 Average Speed 114 | 120 120 120 146 190 120 120 229 160 160 73 48 48 44 44 44 50 Slowest Speed 1355 | 120 120 120 190 190 123 120 1355 160 160 360 48 48 44 44 44 450 Overloaded Moves . | . . . . . . . . . . . . . . . . . Propulsion Burnouts . | . . . . . . . . . . . . . . . . . Robots Hopped . | . . . . . . . . . . . . . . . . . Potential Cave-ins . | . . . . . . . . . . . . . . . . . Cave-ins Triggered . | . . . . . . . . . . . . . . . . . Exploration Rate (%) 47 | 2 76 64 89 76 85 14 91 . 96 26 26 18 14 42 2 45 Regions Visited 16 Branch Regions 3 Pre-discovered Areas 1 | . . . . 1 . . . . . . . . . . . . Known Exits Taken 7 | . . . . . 1 1 . 1 . 1 . 1 1 . 1 . Unknown Exits Taken 5 | 1 1 1 1 1 . . . . . . . . . . . . Scrap Searched 2 | . . 1 . 1 . . . . . . . . . . . . Spaces Dug 107 | . 1 12 . . 25 3 9 . . 10 2 5 19 8 2 11 Terrain Destroyed 200 | . 12 12 . . 25 3 90 . 1 10 2 5 19 8 2 11 Melee 94 | . . . . . 25 3 9 . . 10 2 5 19 8 2 11 Projectile 17 | . 1 12 . . . . 3 . 1 . . . . . . . AOE 89 | . 11 . . . . . 78 . . . . . . . . . Terrain Rammed . | . . . . . . . . . . . . . . . . . Walls Destroyed . | . . . . . . . . . . . . . . . . . Machines Disabled . | . . . . . . . . . . . . . . . . . Actions | -11 -10 -10 -10 -9 -8 -7 -7 -7 -7 -6 -6 -6 -5 -5 -5 -5 --------- Run | Yrd Mat Min Exi Min Mat Fac Gar Fac DSF Fac Gar Fac Fac Gar Fac Gar Total 11037 | . 917 402 508 499 2089 190 1685 2 114 1357 125 1130 972 574 56 417 Wait 1757 | . 64 21 . . 575 25 202 . 12 151 . 171 290 137 . 109 Move 8295 | . 739 353 500 469 1262 147 1224 2 69 1138 109 920 643 400 52 268 Hop . | . . . . . . . . . . . . . . . . . Pick Up 136 | . 13 2 4 8 35 4 29 . 7 13 . 6 7 4 . 4 Fast Attach 20 | . 2 . . . 4 . 3 . 1 7 . 2 . . . 1 Attach 55 | . 5 . . . 13 2 20 . 1 7 . 3 2 . 1 1 Detach 3 | . . . . . 1 . 2 . . . . . . . . . Swap 130 | . 12 6 1 3 49 4 33 . 3 5 . 4 1 4 . 5 Drop 134 | . 14 2 3 3 40 3 24 . 6 19 . 9 1 4 1 5 Fire 294 | . 63 18 . 15 57 2 115 . 15 . . 1 . 6 . 2 Melee 164 | . . . . . 52 3 18 . . 16 8 14 28 11 2 12 Ram 10 | . . . . . . . . . . . . . . . . 10 Kick 7 | . 5 . . 1 1 . . . . . . . . . . . Crush 1 | . . . . . . . . . . 1 . . . . . . Escape Stasis 31 | . . . . . . . 15 . . . 8 . . 8 . . Rewire . | . . . . . . . . . . . . . . . . . Trap . | . . . . . . . . . . . . . . . . . Miscellaneous . | . . . . . . . . . . . . . . . . . Route ------- -11/Scrapyard -10/Materials (discovered 3 exits: [*Mat] / *Min / [*Sub]) -10/Mines (discovered 2 exits: *Exi / [*Sub]) -10/Exiles -9/Mines (discovered 2 exits: *Mat x2) -8/Materials (discovered 3 exits: *Fac x3) -7/Factory -7/Garrison (discovered 3 exits: *Fac x3) -7/Factory -7/DSF -6/Factory (discovered 2 exits: [*Low] / Gar) -6/Garrison -6/Factory -5/Factory -5/Garrison -5/Factory -5/Garrison (discovered 1 exit: [*Fac]) History --------- Turn | Location | Event 1 | -11/Scrapyard | Discovered new exit (range 0) 1 | -11/Scrapyard | Entered Materials 282 | -10/Materials | Discovered new exit (range 7) 312 | -10/Materials | Build established: Mutant 425 | -10/Materials | Lost 4 parts (2n2w) 490 | -10/Materials | Discovered new exit (range 16) 580 | -10/Materials | Discovered new exit (range 7) 1184 | -10/Materials | Entered Mines 1191 | -10/Mines | Core integrity fell below 50% 1210 | -10/Mines | Discovered new exit (range 10) 1214 | -10/Mines | Met a Derelict bent on vengeance 1276 | -10/Mines | Learned 2 Materials zone layouts 1348 | -10/Mines | Met a Derelict who couldn't figure out how to use a Trap Extractor 1524 | -10/Mines | Escorted by a lone wolf Derelict 1700 | -10/Mines | Deemed a non-threat by the Exiles lab entrance 1700 | -10/Mines | Discovered new exit (range 5) 1705 | -10/Mines | Entered Exiles 1735 | -10/Exiles | Met 8R-AWN 1755 | -10/Exiles | Met EX-HEX 1789 | -10/Exiles | Met EX-BIN 1806 | -10/Exiles | Aligned with FarCom system 1807 | -10/Exiles | Given EX-Vault access code 1835 | -10/Exiles | Opened EX-Vault 1844 | -10/Exiles | Found Supersonic Drone Bay 1869 | -10/Exiles | Warned to stay clear of 0b10 Research branches 1905 | -10/Exiles | Met EX-DEC 1944 | -10/Exiles | Visited The Gauntlet 2424 | -10/Exiles | Discovered new exit (range 12) 2446 | -10/Exiles | Left Exiles lab with Supersonic Drone Bay 2446 | -10/Exiles | Entered Mines 2574 | -9/Mines | Discovered new exit (range 14) 2694 | -9/Mines | Learned location of Storage (-9) 2913 | -9/Mines | Discovered new exit (range 7) 2990 | -9/Mines | Found a damaged Exp. Sensor Array with a note attached 3004 | -9/Mines | Found Prototype Device 3005 | -9/Mines | Identified Exp. Sensor Array 3210 | -9/Mines | A weapon hastily lodged in a ceiling crevice suddenly fell to the ground 3311 | -9/Mines | Build established: Skirmisher 3395 | -9/Mines | Entered Materials 3395 | -8/Materials | Evolved 4 slots: Propulsion x2, Utility x2 3396 | -8/Materials | Identified exit to Factory 3699 | -8/Materials | Build established: Scavenger-Mutant 3787 | -8/Materials | Lost 5 parts (3n1u1w) 4744 | -8/Materials | Build established: Mutant 5150 | -8/Materials | Discovered exit to Factory (range 44) 5471 | -8/Materials | Discovered exit to Factory (range 4) 5732 | -8/Materials | Repaired Carbon-fiber Leg 5828 | -8/Materials | Core integrity fell below 50% 5919 | -8/Materials | Entered Factory 5919 | -7/Factory | Evolved 2 slots: Utility x2 6142 | -7/Factory | Identified exit to Garrison 6147 | -7/Factory | Entered Garrison 6659 | -7/Garrison | Triggered checkpoint 6659 | -7/Garrison | Discovered new exit (range 39) 6663 | -7/Garrison | Triggered checkpoint 6693 | -7/Garrison | Build established: Scavenger-Mutant 6764 | -7/Garrison | Triggered checkpoint 6938 | -7/Garrison | Triggered checkpoint 6992 | -7/Garrison | Lost 6 parts (1n4u1w) 6994 | -7/Garrison | Destroyed 7 combat bots 7103 | -7/Garrison | Discovered new exit (range 13) 7131 | -7/Garrison | Triggered checkpoint 7263 | -7/Garrison | Build established: Mutant 7460 | -7/Garrison | Triggered checkpoint 7959 | -7/Garrison | Build established: Scavenger-Mutant 8090 | -7/Garrison | Attempted to access garrison exit controls, blocked by remote lockdown 8899 | -7/Garrison | Attempted to access garrison exit controls, blocked by remote lockdown 9127 | -7/Garrison | Core integrity fell below 50% 9209 | -7/Garrison | Discovered new exit (range 13) 9299 | -7/Garrison | Discovered new exit (range 44) 9299 | -7/Garrison | Discovered new exit (range 25) 9299 | -7/Garrison | Discovered new exit (range 73) 9311 | -7/Garrison | Triggered checkpoint 9624 | -7/Garrison | Entered Factory 9628 | -7/Factory | Identified exit to DSF 9628 | -7/Factory | Entered DSF 9636 | -7/DSF | Discovered new exit (range 43) 9651 | -7/DSF | Additional patrols routed to DSF 9676 | -7/DSF | Core integrity fell below 20% 9812 | -7/DSF | Entered Factory 9812 | -6/Factory | Evolved 2 slots: Power x1, Utility x1 9895 | -6/Factory | Discovered new exit (range 12) 10533 | -6/Factory | Build established: Infiltrator-Mutant 10891 | -6/Factory | Identified exit to Garrison 10891 | -6/Factory | Entered Garrison 10898 | -6/Garrison | Installed Relay Interface Framework 10935 | -6/Garrison | Triggered checkpoint 10970 | -6/Garrison | Discovered new exit (range 5) 10972 | -6/Garrison | Entered Factory 11307 | -6/Factory | Build established: Infiltrator-Ninja 11404 | -6/Factory | Fabricated P-60 Hacker? 11516 | -6/Factory | Discovered new exit (range 6) 11642 | -6/Factory | Identified exit to Factory 11643 | -6/Factory | Entered another Factory area 11643 | -5/Factory | Accompanied by 1 ally 11643 | -5/Factory | Evolved 2 slots: Propulsion x1, Utility x1 12169 | -5/Factory | Build established: Ninja 12297 | -5/Factory | Identified exit to Garrison 12297 | -5/Factory | Entered Garrison 12297 | -5/Garrison | Accompanied by 1 ally 12320 | -5/Garrison | Heavy support dispatched to Factory 12339 | -5/Garrison | Expanded RIF knowledge: Structural Interface 12397 | -5/Garrison | Triggered checkpoint 12467 | -5/Garrison | Garrison Relay disabled 12532 | -5/Garrison | Heavy support dispatched to Factory 12636 | -5/Garrison | Triggered checkpoint 12636 | -5/Garrison | Triggered checkpoint 12649 | -5/Garrison | Discovered new exit (range 16) 12665 | -5/Garrison | Identified exit to Factory 12666 | -5/Garrison | Entered Factory 12675 | -5/Factory | Lost 4 allies 12696 | -5/Factory | Identified exit to Garrison 12696 | -5/Factory | Entered Garrison 12748 | -5/Garrison | Garrison Relay disabled 12814 | -5/Garrison | Expanded RIF knowledge: Patrol Navigation 12930 | -5/Garrison | Triggered checkpoint 12989 | -5/Garrison | Core integrity fell below 50% 12998 | -5/Garrison | Discovered new exit (range 12) 13000 | -5/Garrison | Core integrity fell below 20% 13008 | -5/Garrison | Destroyed by S-27 Virus with Autogun Last Messages --------------- 12975_ S-27 Virus Lgt. Nuclear Core critical detonation. [Achievement: Error 47] 12976_ S-27 Virus destroyed. 12976_ Lgt. Antimatter Reactor destroyed. 12976_ S-27 Virus destroyed. 12979_ Power Sword destroyed. 12985_ Acquired VTOL Module. 12986_ Slammed into S-27 Virus. 12986_ S-27 Virus destroyed. 12986_ Relay Coupler [Swarmer] destroyed. 12990_ Slammed into S-27 Virus. 12990_ Relay Coupler [Grunt] destroyed. 12992_ Slammed into S-27 Virus. 12992_ Destabilizing: Core damaged (-30). 12994_ Slammed into S-27 Virus. 12998_ Jamming Amplifier broken. 12998_ Destabilizing: Short circuit. 12998_ EXIT=FOUND 13000_ Slammed into S-27 Virus. 13006_ RIF reveals location of phase wall. Map ----- +----------------------------------------------------+ | ?????????????????????????????????????????????????? | | ?????????????????????????????????????????????????? | | ?????????????????????????????????????????????????? | | ?????????????????????????????????????????????????? | | ?????????????????????????????????????????????????? | | ?????????????????????????????????????????????????? | | ?????????????????????????????????????????????????? | | ?????????????????????????????????????????????????? | | ????????????????????????#????????????????????????? | | ???????????????????????? ????????????????????????? | | ???????????????????????? ????????????????????????? | | ??????????????????????Y? ????????????????????????? | | ???????????????????????? ????????????????????????? | | ???????????????????????? ????????????????????????? | | ???????????????????????# #???????????????????????? | | ???????????????????????# #???Y???????????????????? | | ???????????????????????# #???????????????????????? | | ???????????????????????# #???????????????????????? | | ???????????????????????+ #???????????????????????? | | ####???????????????????# #???????????????????????? | | #???????????????????# #???????????????????????? | | #???????????????????# #???????????????????????? | | # #????????#####??????# #?????? #???????????????? | | # #????????# #????### ##### < #???????????????? | | # #???????##;%=######ss #???????????????? | | + #???????#*g=ssgs sssss@ #???????????????? | | # #???????#h%[%######s ##########???????????????? | | # #######?#g####????# #????????????????????????? | | # ## #?#b#???????# #????????????????????????? | | # ## ###h##??????# #????????????????????????? | | b =######## #????????????????????????? | | % #????????????????????????? | | = #????????????????????????? | | ## ## #########+#????????????????????????? | | ## ## #??????????????????????????????????? | | ?????????????????????????????????? | | #????????????????????????????????? | | #????????????????????????????????? | | #????????????????????????????????? | | ## ## ###????????????????????????????????? | | ## ## ^#??????????????????????????????????? | | ^ ?????????????????????????????????? | | ????????????????????????????????? | | ####???????????????????????????????? | | ## ## ##??????????????????????????????????? | | ## ?# #???????????????????????????????????? | | ######?# #???????????????????????????????????? | | #??????? #???????????????????????????????????? | | #??????? ????????????????????????????????????? | | #??????? ????????????????????????????????????? | +----------------------------------------------------+ Best States ------------- Heat Dissipation 70 Energy Generation 37 Energy Capacity 500 Matter Stores 455 Matter Capacity 500 Sight Range 22 Robot Scan Range 20 Terrain Scan Range 20 Terrain Scan Density 210 Jamming Range 12 Additional Mass Support 12 Armor Coverage 450 Resistance: KI 20 Resistance: EM 15 Propulsion Shielding 66 Weapon Shielding 66 Evasion (%) 65 Recoil Reduction 5 Offensive Hacking 12 Relay Coupler Types 2 Relay Coupler Value 55 Authchip Count 2 Item Schematics ----------------- Aluminum Leg | -8/Materials | Scanalyzed Ripper | -8/Materials | Scanalyzed Nuclear Pulse Array | -5/Factory | Scanalyzed Robot Schematics ------------------ None Fabricated ------------ P-60 Hacker | x2 | -6/Factory | Preloaded, Authchip Repaired ---------- Carbon-fiber Leg | 74% | -8/Materials Studied --------- Med. Laser | -8/Materials | Hacked Minigun | -8/Materials | Hacked Airjet | -6/Factory | Hacked Nuclear Pulse Array | -5/Factory | Hacked Alien Tech Used ----------------- None Achievements -------------- Error 47 Hunted Immobile And Lovin' It Mindtrick No Room For Error Official Business Window Shopping You Will Be Upgraded Challenges ------------ None Game ------ Seed ShockFusionDetector Manual? 0 Play Time 03:27:59 Cumulative 70.9 hours Start 2026.01.19 @ 19:20:17 End 2026.01.20 @ 13:08:44 Sessions 5 Manual Loads 0 Difficulty Rogue Special Mode None Game No. 81 Rogue 81 Adventurer 0 Explorer 0 Win Type - Total 1 Types 1/0/0/0/0/0/0/0/0/0 Lore% 26 Gallery% 35 Achievement% 28 Wizard Run 0 Options --------- Layout 0 ASCII 0 Keyboard 0 Movement Mouse Keybinds 0 Fullscreen 0 Font 16/SmallcapsGlow Map View 88x55 Zoom Use 0% Tactical HUD 1 Map Filters NONE Filters NONE Steam 1 RUN: 4d1ccf63-5fdd-4496-bb3f-1dade9783f70